[Event "European Women-ch 2023"]
[Site "Petrovac"]
[Date "2023.03.19"]
[Round "2.19"]
[White "Silva, Ana Ines Teixeira Da"]
[Black "Vidic, Teja"]
[Result "0-1"]
[ECO "B22"]
[WhiteElo "1792"]
[BlackElo "2097"]
[Annotator "TA"]
[PlyCount "124"]
[EventDate "2023.03.15"]
[EventType "swiss"]
[EventCountry "MNE"]
[SourceTitle "playchess.com"]
[Source "ChessBase"]
[SourceQuality "1"]
[TimeControl "40/5400+30:1800+30"]

{[%evp 13,124,14,6,0,7,9,7,0,0,10,9,3,0,0,25,-35,-36,-43,0,-52,-7,0,17,0,14,-18,0,0,0,0,0,-21,0,-16,0,-21,0,0,7,0,21,-83,-89,-100,-102,-107,-96,-120,-125,-115,-122,-122,-100,-114,-114,-113,-116,-111,-118,-179,-172,-304,-302,-316,-306,-268,-262,-304,-272,-445,-410,-435,-435,-447,-438,-422,-411,-402,-381,-392,-402,-414,-359,-279,-127,-163,-176,-163,-175,-852,-847,-748,-677,-1325,-1211,-1311,-1202,-978,-984,-2300,-1912,-29972,-29972,-29982,-29983,-29983,-29984,-29984,-29985,-29985,-29986,-29987,-29988]} 1. e4 {[%emt 0:00:04][%cal Be2e4,Be4e5][%mdl 32]} c5 {[%emt 0:00:10]} 2. c3 {[%emt 0:00:09]} Nf6 {[%emt 0:00:28]} 3. e5 {[%emt 0:00:15]} Nd5 {[%emt 0:00:05]} 4. Nf3 {[%emt 0:00:23]} Nc6 {[%emt 0:00:37]} 5. Bc4 {[%emt 0:00:47]} Nb6 {[%emt 0:00:14]} 6. Bb3 {[%emt 0:00:29]} d5 {[%emt 0:00:10]} 7. exd6 {[%emt 0:02:07]} Qxd6 {[%emt 0:00:16]} 8. O-O {[%emt 0:04:17] 8.0-0 is better than 8.Na3. B22: Sicilian: 2 c3.} Be6 {[%emt 0:00:21]} 9. Bxe6 {[%emt 0:01:33]} Qxe6 {[%emt 0:00:07]} 10. a4 {[%emt 0:03:39][%cal Ba2a4,Ba4a5,Ba5a6][%mdl 32] The position is equal.} Qd7 {[%emt 0:05:54]} 11. a5 {[%emt 0:03:52]} Nd5 {[%emt 0:01:07]} 12. a6 {[%emt 0:04:21]} b6 {[%emt 0:07:15]} 13. d4 {[%emt 0:09:49]} e6 {[%emt 0:01:47]} 14. Na3 {[%emt 0:10:07]} (14. Ne5 $11 Nxe5 15. dxe5) 14... cxd4 $15 {[%emt 0:07:24]} 15. Nxd4 {[%emt 0:06:32] [#]} Bc5 $146 {[%emt 0:00:14]} ({Predecessor:} 15... Bxa3 16. Rxa3 O-O 17. Nb5 Na5 18. Qa4 Rac8 19. Nd4 Qe7 20. Re1 Rc4 21. Qd1 Rfc8 {½-½ Jones,G (2617)-Iturrizaga Bonelli,E (2636) PRO League Prelim rapid 2023 (1.3)}) 16. Nb3 {[%emt 0:10:07]} (16. Nxc6 $11 Qxc6 17. Qe2) 16... Be7 {[%emt 0:05:51]} 17. c4 {[%emt 0:06:10]} Nf6 {[%emt 0:02:23]} 18. Qf3 {[%emt 0:04:00][%cal Ob3d4]} Rd8 {[%emt 0:04:48]} 19. Bf4 {[%emt 0:09:24] [#] aiming for Rfd1.} (19. Nb5 $5 {[%cal Rc1f4]}) 19... O-O {[%emt 0:10:09]} (19... e5 $5 {[%cal Re5f4]} 20. Rad1 Qe6 21. Rxd8+ Bxd8 $11) 20. Rfd1 {[%emt 0:08:03] Prevents e5} Qc8 {[%emt 0:00:20]} 21. Nb5 {[%emt 0:06:33]} Rxd1+ {[%emt 0:02:38]} 22. Qxd1 {[%emt 0:00:06]} Rd8 {[%emt 0:00:12]} 23. Qe2 {[%emt 0:00:08]} Rd7 {[%emt 0:06:42]} 24. Be3 {[%emt 0:06:02]} Ne8 {[%emt 0:20:59]} 25. c5 {[%emt 0:01:06]} bxc5 {[%emt 0:00:05]} 26. Nxc5 {[%emt 0:00:35]} Rd5 {[%emt 0:00:09]} 27. Rc1 {[%emt 0:01:01] [#]} (27. Ne4 $11 {remains equal.} Qb8 28. Nec3) 27... Bxc5 $1 $17 {[%emt 0:01:27]} 28. Rxc5 {[%emt 0:01:50]} Rxc5 {[%emt 0:00:06]} 29. Bxc5 {[%emt 0:00:04]} Qxa6 {[%emt 0:00:07]} 30. h3 {[%emt 0:00:51]} Nc7 $36 {[%emt 0:02:49][%mdl 2048] Black is in control.} 31. Nc3 {[%emt 0:00:06]} Qxe2 {[%emt 0:00:09]} 32. Nxe2 {[%emt 0:00:04][%mdl 4096] Endgame KBN-KNN} f6 {[%emt 0:00:31]} 33. Nc3 {[%emt 0:00:18]} e5 {[%emt 0:01:15][%cal Be6e5,Be5d4][%mdl 32]} 34. Kf1 {[%emt 0:00:16]} Ne6 {[%emt 0:02:02]} 35. Be3 {[%emt 0:00:55]} Ned4 {[%emt 0:00:15]} 36. Ne2 {[%emt 0:01:01]} (36. Ke1 $17) 36... Kf7 $19 {[%emt 0:01:11]} 37. Nxd4 {[%emt 0:00:53]} (37. Nc3 {might work better.}) 37... exd4 {[%emt 0:00:54] KB-KN} ({Stronger than} 37... Nxd4 38. Ke1 $17) 38. Bd2 {[%emt 0:00:28]} Ke6 {[%emt 0:00:19] ...Kd5 would be deadly.} 39. Ke2 {[%emt 0:00:27]} Kd5 {[%emt 0:00:06] And now ...Kc4 would win.} 40. Kd3 {[%emt 0:00:00]} g5 {[%emt 0:00:00]} 41. b3 $2 {[%emt 0:13:43]} (41. Kc2) 41... Ne5+ {[%emt 0:05:49]} 42. Ke2 {[%emt 0:00:07]} Nd7 {[%emt 0:01:39]} 43. Kd3 {[%emt 0:10:06]} Nc5+ {[%emt 0:09:26]} 44. Kc2 {[%emt 0:00:08]} Ke4 {[%emt 0:01:02]} 45. f3+ {[%emt 0:02:04]} Ke5 {[%emt 0:00:51]} 46. Bb4 {[%emt 0:05:34]} Ne6 {[%emt 0:02:17]} 47. g3 {[%emt 0:01:10]} h5 {[%emt 0:00:05]} 48. Kd3 {[%emt 0:00:50]} h4 {[%emt 0:05:51]} (48... f5 $19 {is more deadly. Hoping for ...Kd5.} 49. Be7 Kd5) 49. Be1 {[%emt 0:01:42]} hxg3 {[%emt 0:04:29]} 50. Bxg3+ {[%emt 0:00:04]} Kd5 {[%emt 0:00:05]} 51. b4 $2 {[%emt 0:00:45]} (51. h4) 51... a6 {[%emt 0:01:42]} 52. Bh2 {[%emt 0:00:23]} Nd8 {[%emt 0:00:42] ...Nc6 is the strong threat.} 53. Bg3 {[%emt 0:00:47]} Nc6 {[%emt 0:00:05]} 54. Be1 {[%emt 0:00:14]} Ne5+ {[%emt 0:00:08]} 55. Ke2 {[%emt 0:00:18]} Kc4 {[%emt 0:00:27]} 56. f4 {[%emt 0:00:41]} gxf4 {[%emt 0:02:09][%cal Bg5f4,Bf4f3][%mdl 32] Strongly threatening ...f3+.} 57. h4 {[%emt 0:00:11]} f3+ {[%emt 0:04:11] Black mates.} 58. Kd2 {[%emt 0:00:37]} Ng4 {[%emt 0:02:06]} 59. h5 {[%emt 0:00:24]} f2 {[%emt 0:00:18]} 60. Bxf2 {[%emt 0:00:17]} Nxf2 {[%emt 0:00:06]} 61. h6 {[%emt 0:00:20]} Ne4+ {[%emt 0:00:12]} (61... Kxb4 $2 62. h7 $18) 62. Ke2 {[%emt 0:00:15]} Ng5 {[%emt 0:00:16] Weighted Error Value: White=0.55/Black=0.09 (flawless)} (62... Kxb4 $2 63. h7 $18) 0-1

[Event "European Women-ch 2023"]
[Site "Petrovac"]
[Date "2023.03.19"]
[Round "2.20"]
[White "Gaboyan, Susanna"]
[Black "Narva, Mai"]
[Result "0-1"]
[ECO "E16"]
[WhiteElo "2160"]
[BlackElo "2389"]
[Annotator "TA"]
[PlyCount "84"]
[EventDate "2023.03.15"]
[EventType "swiss"]
[EventCountry "MNE"]
[SourceTitle "playchess.com"]
[Source "ChessBase"]
[SourceQuality "1"]
[TimeControl "40/5400+30:1800+30"]

{[%evp 11,84,6,5,10,13,-8,10,0,-4,0,0,0,0,0,0,0,0,0,0,0,0,0,0,0,0,0,10,0,0,0,24,0,0,-58,-49,-64,-73,-68,-69,-81,-32,-49,-35,-35,-35,-56,-66,-53,-18,-12,-12,0,0,0,0,-14,-5,-13,-14,-165,-160,-177,-174,-566,-551,-696,-696,-727,-720,-1028,-690,-1023,-1018,-845,-823]} 1. Nf3 {[%emt 0:00:03]} d5 {[%emt 0:00:12]} 2. g3 {[%emt 0:00:06]} b6 {[%emt 0:00:12]} 3. Bg2 {[%emt 0:00:07]} Bb7 {[%emt 0:00:09]} 4. O-O {[%emt 0:00:10]} Nf6 {[%emt 0:00:12]} 5. d4 {[%emt 0:03:09]} e6 {[%emt 0:01:26]} 6. c4 {[%emt 0:00:39]} dxc4 {[%emt 0:04:29] Nowadays more popular than 6...Be7.} 7. Qa4+ {[%emt 0:00:50] E16: Queen's Indian: 4 g3 Bb7 5 Bg2 Bb4+.} Nbd7 {[%emt 0:00:45]} 8. Qxc4 {[%emt 0:01:19]} (8. Ne5 {looks sharper.} Bxg2 9. Kxg2 c5 10. dxc5 Bxc5 11. Rd1) 8... a6 {[%emt 0:00:45]} 9. Bf4 {[%emt 0:05:13] The position is equal.} c5 {[%emt 0:04:18]} 10. Nc3 {[%emt 0:11:46][%cal Oe2e4]} b5 {[%emt 0:04:16]} 11. Qd3 {[%emt 0:01:22]} cxd4 {[%emt 0:13:14]} 12. Qxd4 {[%emt 0:01:38]} ({Much weaker is} 12. Nxd4 Bxg2 13. Kxg2 e5 $17) 12... Bc5 {[%emt 0:02:10]} 13. Qd3 {[%emt 0:07:42]} O-O {[%emt 0:11:13]} 14. Bd6 {[%emt 0:07:46] Prevents Qe7} Bxd6 {[%emt 0:03:38]} 15. Qxd6 {[%emt 0:00:20]} Nb6 {[%emt 0:02:24] [#]} 16. Qb4 $146 {[%emt 0:04:36]} ({Predecessor:} 16. Qf4 Rc8 17. Rac1 Qe7 18. Rfd1 b4 19. Nb1 a5 20. Ne5 Bxg2 21. Kxg2 Na4 22. Nd3 {½-½ Moradiabadi,E (2558)-Sjugirov,S (2602) GRE-chT Div-A 38th 2010 (1)}) 16... Rc8 {[%emt 0:06:33]} 17. Rfd1 {[%emt 0:01:18]} Qc7 {[%emt 0:00:59]} 18. a4 {[%emt 0:06:45]} Nbd5 {[%emt 0:11:06]} 19. Nxd5 {[%emt 0:00:31]} Nxd5 {[%emt 0:01:04]} 20. Qd4 {[%emt 0:00:57]} b4 {[%emt 0:02:28]} 21. e4 {[%emt 0:05:06]} Nf6 {[%emt 0:01:50]} 22. Qxb4 {[%emt 0:02:27]} ({Better is} 22. e5 $11 Nd5 23. Ng5) 22... Bxe4 $15 {[%emt 0:01:48]} 23. Nd4 {[%emt 0:02:33][%cal Od4e6]} Bxg2 {[%emt 0:04:10]} 24. Kxg2 {[%emt 0:00:09][%cal Oa1c1]} Rb8 {[%emt 0:00:55][%cal Bc8b8,Bb8b2,Bb2a2][%mdl 32]} 25. Qc3 {[%emt 0:21:11] [#]} Qb7+ {[%emt 0:00:23]} ({Black should play} 25... Qxc3 $1 $17 26. bxc3 Ne4) 26. Qc6 {[%emt 0:03:16]} Qxc6+ {[%emt 0:04:34]} 27. Nxc6 {[%emt 0:00:07]} Rxb2 {[%emt 0:02:14] Hoping for ...Ng4.} 28. Rab1 {[%emt 0:00:11]} Ra2 {[%emt 0:04:55][%cal Of6g4]} 29. Rd4 {[%emt 0:00:09] Repels Ng4} Nd5 {[%emt 0:04:35] Dodges Rb6} 30. Rb7 {[%emt 0:01:34]} Nc3 {[%emt 0:02:07]} 31. a5 {[%emt 0:11:06]} g5 {[%emt 0:01:17]} 32. h4 {[%emt 0:00:48]} h6 {[%emt 0:01:52]} 33. hxg5 {[%emt 0:00:08]} hxg5 {[%emt 0:00:05]} 34. Rg4 {[%emt 0:00:22]} Kh7 {[%emt 0:00:42]} 35. Rb3 $2 {[%emt 0:01:40] White does not recover from this.} (35. Rxg5 $11 Ne4 36. Rh5+ Kg6 37. Rh4 Rxf2+ 38. Kg1) 35... Nd1 $19 {[%emt 0:00:58]} 36. Rf3 {[%emt 0:00:12] [#]} f5 $1 {[%emt 0:01:02]} 37. Rxg5 $2 {[%emt 0:01:11]} (37. Nb4 Rxf2+ {[%mdl 64] Deflection} 38. Rxf2 Ne3+ 39. Kg1 Nxg4 40. Rf1) 37... Kh6 {[%emt 0:00:15] Black is clearly winning.} 38. Nd4 {[%emt 0:00:31][%cal Og3g4]} Re8 {[%emt 0:01:32]} ({Stronger than} 38... Kxg5 39. Nxe6+ Kf6 40. Nxf8 $11) 39. Nxe6 {[%emt 0:00:28]} Rxe6 {[%emt 0:00:10]} 40. Rg8 {[%emt 0:00:00]} Kh7 {[%emt 0:00:00]} 41. Rd8 {[%emt 0:01:52]} Ne3+ {[%emt 0:02:54]} 42. Rxe3 {[%emt 0:02:11]} Rxe3 {[%emt 0:00:08] Weighted Error Value: White=0.47/Black=0.14 (very precise)} 0-1

[Event "European Women-ch 2023"]
[Site "Petrovac"]
[Date "2023.03.19"]
[Round "2.20"]
[White "Abdinova, Narmin"]
[Black "Zhezhovska, Monika"]
[Result "0-1"]
[ECO "B36"]
[WhiteElo "2090"]
[BlackElo "1761"]
[Annotator "TA"]
[PlyCount "110"]
[EventDate "2023.03.15"]
[EventType "swiss"]
[EventCountry "MNE"]
[SourceTitle "playchess.com"]
[Source "ChessBase"]
[SourceQuality "1"]
[TimeControl "40/5400+30:1800+30"]

{[%evp 12,110,36,33,35,-110,-111,-118,-115,-107,-117,-139,-135,-135,-134,-151,-134,-136,-140,-193,-181,-172,-167,-210,-188,-175,-116,-113,-107,-118,-114,-120,-67,-70,-16,-12,-16,-20,-21,-28,0,0,-6,-5,0,-5,0,0,0,0,0,0,0,0,0,0,0,0,0,0,0,-115,-146,-118,-126,-246,-197,-535,-508,-650,-317,-1174,-1074,-29984,-29985,-29997,-29980,-29982,-29981,-29977,-217,-217,-217,-217,-191,-191,-191,-217,-217,-191,-191,-29967,-29977,-29977,-29978,-29978,-29979,-29979,-29980,-29980,-29981]} 1. e4 {[%emt 0:01:27]} c5 {[%emt 0:00:08]} 2. Nf3 {[%emt 0:00:23]} Nc6 {[%emt 0:00:14]} 3. d4 {[%emt 0:00:25]} cxd4 {[%emt 0:00:13]} 4. Nxd4 {[%emt 0:00:26]} Nf6 {[%emt 0:00:44][%cal Bg8f6,Bf6e4,Be4c3,Bc3d1][%mdl 32]} 5. f3 {[%emt 0:01:24]} d6 {[%emt 0:02:11]} 6. c4 {[%emt 0:00:44]} g6 {[%emt 0:00:58]} 7. Nc3 {[%emt 0:00:36]} Bg7 {[%emt 0:00:35][%cal Of6e4] B36: Sicilian: Maroczy Bind: Gurgenidze System.} 8. Be2 {[%emt 0:01:24] [#]} (8. Be3 $14) 8... Nxe4 $1 $17 {[%emt 0:08:14][%mdl 512]} 9. Nxc6 {[%emt 0:03:37]} Nxc3 {[%emt 0:00:07] Black is better.} 10. Nxd8 {[%emt 0:03:03]} Nxd1 {[%emt 0:00:11]} 11. Nxf7 {[%emt 0:03:17]} Kxf7 {[%emt 0:00:49]} 12. Kxd1 {[%emt 0:02:45]} Be6 {[%emt 0:01:32] [#]} 13. Be3 $146 {[%emt 0:11:02]} ({Predecessor:} 13. Bg5 b6 14. Kc2 Rhc8 15. Rae1 b5 16. b3 h6 17. Bh4 bxc4 18. b4 Bf5+ 19. Kc1 Bc3 {0-1 Martinez Salas,I (2010)-Dominguez Pons,E (2259) ESP-ch U18 Padron 2008 (4)}) 13... b6 {[%emt 0:02:38][%cal Bb7b6,Bb6b5][%mdl 32] Black is more active.} 14. Kc2 {[%emt 0:04:14]} Rhc8 {[%emt 0:01:43]} 15. Rac1 {[%emt 0:08:51]} (15. Rad1 $17 {was worth a try.}) 15... b5 $19 {[%emt 0:05:11]} (15... Bxc4 16. Bxc4+ Rxc4+ 17. Kb3 $17) 16. c5 {[%emt 0:21:57]} dxc5 {[%emt 0:14:31][%cal Bd6c5,Bc5c4][%mdl 32]} ({And not} 16... Bxa2 17. b3 $15) 17. Bd3 {[%emt 0:01:24]} c4 {[%emt 0:03:09]} 18. Be4 {[%emt 0:00:11]} Bf5 {[%emt 0:00:13]} (18... Rab8 $1 $19 19. Kb1 (19. Bxa7 $2 {too greedy.} Ra8 $19) 19... c3) 19. Bxf5 $17 {[%emt 0:10:55]} gxf5 {[%emt 0:00:06]} 20. Rcd1 {[%emt 0:00:04]} Rd8 {[%emt 0:02:27] Against Rd5} 21. g4 {[%emt 0:03:31]} e6 {[%emt 0:09:05]} (21... b4 $17 {[%cal Ob4b3]} 22. Bc5 a5 23. gxf5 Bf6) 22. h4 $15 {[%emt 0:04:16]} a5 {[%emt 0:01:56]} ({Black should play} 22... fxg4 $15 23. fxg4 e5) 23. Bb6 $1 $11 {[%emt 0:00:53]} Rd5 {[%emt 0:04:36] ...Ra6 would be deadly.} 24. gxf5 {[%emt 0:08:38]} Rxf5 {[%emt 0:08:41] White must now prevent ...Rd5.} 25. Rd7+ {[%emt 0:00:06]} Kg8 {[%emt 0:00:13]} 26. Rg1 {[%emt 0:06:30]} Rf7 {[%emt 0:00:39]} 27. Rd6 {[%emt 0:00:23]} Rxf3 {[%emt 0:09:55]} 28. h5 {[%emt 0:00:01][%cal Oh5h6] aiming for h6!} h6 {[%emt 0:01:58]} 29. Rxe6 {[%emt 0:00:04][%cal Oe6g6]} Kf7 {[%emt 0:01:47]} 30. Rc6 {[%emt 0:01:31]} Bf6 {[%emt 0:02:18]} 31. Rc7+ {[%emt 0:00:27]} Ke6 {[%emt 0:00:23]} 32. Rc6+ {[%emt 0:00:03]} Kf7 {[%emt 0:00:24]} 33. Rc7+ {[%emt 0:00:06]} Ke6 {[%emt 0:00:05]} 34. Re1+ {[%emt 0:02:14]} Kd6 {[%emt 0:01:55][%cal Of6d4]} 35. Rd1+ {[%emt 0:00:32]} Rd3 {[%emt 0:01:19]} 36. Rh7 {[%emt 0:00:35]} (36. Rxd3+ $11 {keeps the balance.} cxd3+ 37. Kxd3) 36... Rxd1 $17 {[%emt 0:00:31] White is now going downhill.} 37. Kxd1 {[%emt 0:00:01][%mdl 4096] Endgame KRB-KRB} Bg5 {[%emt 0:00:13]} 38. Rg7 {[%emt 0:00:44]} (38. a4 $17 {is a better defense.}) 38... b4 {[%emt 0:01:00]} 39. Kc2 $2 {[%emt 0:00:41]} (39. b3) 39... a4 $19 {[%emt 0:01:13] Threatens to win with ...b3+.} 40. Bc7+ {[%emt 0:00:00]} Kd5 {[%emt 0:00:00]} (40... Kc6 $142 {...b3+ is the strong threat.} 41. Rg6+ Kxc7) 41. Rg6 $2 {[%emt 0:08:12]} (41. Rf7) 41... Rf8 {[%emt 0:03:39] Strongly threatening ...Rf2+.} 42. b3 {[%emt 0:04:29]} Rf2+ {[%emt 0:00:36]} 43. Kb1 {[%emt 0:00:05]} axb3 {[%emt 0:00:41]} 44. axb3 {[%emt 0:00:05]} c3 {[%emt 0:00:32]} 45. Rd6+ {[%emt 0:00:12]} Kc5 $2 {[%emt 0:00:06]} (45... Ke4 $1 {mates} 46. Rc6 Rf1+ 47. Ka2 Kd5 48. Rd6+ Kc5 49. Rg6 c2 50. Bb6+ Kb5 51. Rxg5+ {[%mdl 64] Remove Defender} hxg5 52. Be3 c1=Q 53. Bxc1 Rxc1 54. Kb2 Rc7 55. Kb1 g4 56. h6 g3 57. h7 Rxh7 58. Kc1 g2 59. Kd1 g1=Q+ 60. Ke2 Rh3 61. Kd2 Qg2+ 62. Ke1 Rh1#) 46. Bb6+ {[%emt 0:00:05]} Kxd6 {[%emt 0:00:17]} 47. Bxf2 {[%emt 0:00:05] KB-KB} Kd5 {[%emt 0:00:38]} 48. Kc2 {[%emt 0:01:23]} Be7 $1 {[%emt 0:00:10]} 49. Be3 {[%emt 0:00:30]} Bf8 {[%emt 0:00:18]} 50. Kd3 {[%emt 0:00:29] [#]} Ke5 $1 {[%emt 0:00:18] ( -> ...Kf5)} 51. Ke2 $2 {[%emt 0:00:23]} (51. Bd4+ $19 Kf4 52. Bxc3 bxc3 53. Kxc3) 51... Ke4 {[%emt 0:00:21] Black mates.} 52. Bc1 {[%emt 0:01:20]} Bg7 {[%emt 0:02:28]} 53. Be3 {[%emt 0:00:58] [#]} c2 $1 {[%emt 0:02:27]} 54. Bc1 {[%emt 0:01:41]} Bc3 {[%emt 0:00:14]} 55. Bxh6 {[%emt 0:03:23]} Bb2 {[%emt 0:26:26] Weighted Error Value: White=0.58/Black=0.28 (precise)} 0-1

[Event "European Women-ch 2023"]
[Site "Petrovac"]
[Date "2023.03.19"]
[Round "2.21"]
[White "Pogorelskikh, Sofia"]
[Black "Balajayeva, Khanim"]
[Result "1/2-1/2"]
[ECO "C76"]
[WhiteElo "2102"]
[BlackElo "2372"]
[Annotator "TA"]
[PlyCount "62"]
[EventDate "2023.03.15"]
[EventType "swiss"]
[EventCountry "MNE"]
[SourceTitle "playchess.com"]
[Source "ChessBase"]
[SourceQuality "1"]
[TimeControl "40/5400+30:1800+30"]

{[%evp 21,62,17,24,18,22,5,20,-2,34,18,41,30,38,33,40,18,32,-4,0,-41,-3,-35,-17,-47,0,0,12,27,20,0,63,57,66,65,60,60,131,116,101,92,239,114,120]} 1. e4 {[%emt 0:00:04]} e5 {[%emt 0:00:05]} 2. Nf3 {[%emt 0:00:09]} Nc6 {[%emt 0:00:07]} 3. Bb5 {[%emt 0:00:14]} a6 {[%emt 0:00:11]} 4. Ba4 {[%emt 0:00:10]} d6 {[%emt 0:00:07]} 5. c3 {[%emt 0:05:29]} Bd7 {[%emt 0:00:42]} 6. O-O {[%emt 0:02:07]} g6 {[%emt 0:00:20]} 7. d4 {[%emt 0:01:54]} Bg7 {[%emt 0:00:33]} 8. d5 {[%emt 0:06:55]} Nce7 {[%emt 0:01:08]} 9. Bxd7+ {[%emt 0:02:15]} Qxd7 {[%emt 0:02:12]} 10. c4 {[%emt 0:01:47]} h6 {[%emt 0:00:49]} 11. Nc3 {[%emt 0:01:48]} f5 {[%emt 0:01:32]} 12. Nd2 {[%emt 0:05:53] C76: Ruy Lopez: Deferred Steinitz: 5 c3 Bd7 6 d4 g6.} Nf6 {[%emt 0:05:19]} 13. Rb1 {[%emt 0:02:42]} O-O {[%emt 0:08:40][%cal Bh8f8,Bf8f7,Bf7g7][%mdl 32]} 14. b4 {[%emt 0:03:38] [#] The position is equal.} Rf7 $146 {[%emt 0:06:35]} ({Predecessor:} 14... b5 15. Qb3 Kh8 16. a4 fxe4 17. Ndxe4 Nxe4 18. Nxe4 bxc4 19. Qxc4 Qxa4 20. Qxc7 Nxd5 21. Qxd6 {0-1 Indjic,A (2618)-Artemiev,V (2716) Titled Tuesday intern op 20th Oct blitz 2020 (10)}) 15. a4 {[%emt 0:05:08][%cal Ba2a4,Ba4a5][%mdl 32]} f4 {[%emt 0:09:08]} 16. a5 {[%emt 0:07:02]} g5 {[%emt 0:04:00]} 17. c5 {[%emt 0:03:54]} Bf8 {[%emt 0:13:47]} 18. Ba3 {[%emt 0:17:40]} Ng6 {[%emt 0:11:43]} 19. f3 {[%emt 0:03:56]} Rg7 {[%emt 0:06:55]} 20. Qa4 {[%emt 0:05:52]} Qc8 {[%emt 0:01:09]} 21. h3 {[%emt 0:02:58]} h5 {[%emt 0:01:00] ...g4 is the strong threat.} 22. Kf2 $1 {[%emt 0:00:38][%cal Bg1f2,Bf2e2,Be2d1][%mdl 32]} Nh4 {[%emt 0:04:03]} (22... g4 $15 {might be stronger.} 23. hxg4 Nxg4+ 24. fxg4 Qxg4) 23. Rh1 $1 $11 {[%emt 0:01:48][%cal Bf1h1,Bh1h5,Bh5h2][%mdl 32]} ({But not} 23. Kg1 $2 g4 24. hxg4 Nxg4 25. fxg4 Qxg4 $19) 23... g4 {[%emt 0:03:14]} 24. hxg4 {[%emt 0:01:45]} Nxg4+ {[%emt 0:02:05]} 25. Ke2 $1 {[%emt 0:01:08]} Nxg2 {[%emt 0:04:37]} (25... Be7 $1 $11) 26. Rxh5 $1 $14 {[%emt 0:00:44]} Nf6 {[%emt 0:04:03]} 27. Rh2 {[%emt 0:01:04]} Ne3 {[%emt 0:01:43]} 28. Rbh1 {[%emt 0:00:23]} Nh7 {[%emt 0:01:34]} ({Black should try} 28... Rg3 $14) 29. Nd1 {[%emt 0:02:11] Some like it hot} Nxd1 {[%emt 0:00:33]} 30. Kxd1 {[%emt 0:02:29] Threatens to win with Nc4.} Qd8 {[%emt 0:02:34]} (30... Qe8 $16 {might work better.} 31. Qc2 Rd8) 31. c6 {[%emt 0:01:13]} (31. Nc4 $18 {is more deadly.}) 31... Qe8 {[%emt 0:06:31] Weighted Error Value: White=0.15 (very precise) /Black=0.27 (precise)} 1/2-1/2